[Event "*** Titled Tuesday Blitz"]
[Site "Chess.com"]
[Date "2019.04.02"]
[Round "2"]
[White "ENEASZ"]
[Black "Denis_Palkovich"]
[Result "1-0"]
[WhiteElo "2411"]
[BlackElo "2229"]
[TimeControl "180+2"]
[EndTime "14:21:58 PDT"]
[Termination "ENEASZ won by resignation"]

1. e4 {[%clk 0:03:01.9]} 1... c6 {[%clk 0:03:00.4]} 2. Nc3 {[%clk 0:02:59]} 2...
d5 {[%clk 0:03:01.2]} 3. Nf3 {[%clk 0:03:00.3]} 3... dxe4 {[%clk 0:03:02.3]} 4.
Nxe4 {[%clk 0:03:00.8]} 4... Nf6 {[%clk 0:03:03.3]} 5. Nxf6+ {[%clk 0:02:59.9]}
5... exf6 {[%clk 0:03:04.2]} 6. g3 {[%clk 0:02:59.2]} 6... Bg4 {[%clk
0:03:00.3]} 7. Bg2 {[%clk 0:02:58.9]} 7... Qe7+ {[%clk 0:02:59.8]} 8. Qe2 {[%clk
0:02:59.8]} 8... Qxe2+ {[%clk 0:03:01.3]} 9. Kxe2 {[%clk 0:03:01.7]} 9... Nd7
{[%clk 0:03:00.8]} 10. h3 {[%clk 0:03:02.4]} 10... Bf5 {[%clk 0:02:40.7]} 11. d3
{[%clk 0:03:02.8]} 11... Bc5 {[%clk 0:02:37.3]} 12. Be3 {[%clk 0:03:03]} 12...
O-O-O {[%clk 0:02:30.8]} 13. a3 {[%clk 0:02:59.1]} 13... Rhe8 {[%clk 0:02:27.9]}
14. Kd2 {[%clk 0:03:00.1]} 14... Bxe3+ {[%clk 0:02:18.5]} 15. fxe3 {[%clk
0:03:02]} 15... Ne5 {[%clk 0:02:19.7]} 16. Nxe5 {[%clk 0:02:48.4]} 16... fxe5
{[%clk 0:02:18.1]} 17. e4 {[%clk 0:02:49.6]} 17... Bg6 {[%clk 0:02:18.7]} 18. h4
{[%clk 0:02:40.7]} 18... h6 {[%clk 0:02:13.2]} 19. Ke3 {[%clk 0:02:33.4]} 19...
f6 {[%clk 0:02:13.5]} 20. g4 {[%clk 0:02:30.2]} 20... Rh8 {[%clk 0:01:59.3]} 21.
Bf3 {[%clk 0:02:23.9]} 21... Kd7 {[%clk 0:01:59.2]} 22. Rag1 {[%clk 0:02:20.6]}
22... Ke7 {[%clk 0:01:59.2]} 23. Be2 {[%clk 0:02:11.9]} 23... Bf7 {[%clk
0:01:49]} 24. Rh3 {[%clk 0:02:00.3]} 24... Be6 {[%clk 0:01:46.8]} 25. Rhg3
{[%clk 0:02:01.3]} 25... c5 {[%clk 0:01:09.2]} 26. Kd2 {[%clk 0:01:41.2]} 26...
b6 {[%clk 0:01:07.5]} 27. Kc3 {[%clk 0:01:39.9]} 27... a5 {[%clk 0:01:02.4]} 28.
a4 {[%clk 0:01:36.2]} 28... Bd7 {[%clk 0:01:00.9]} 29. b3 {[%clk 0:01:37.4]}
29... Be6 {[%clk 0:01:00.2]} 30. Bf3 {[%clk 0:01:30.8]} 30... Rd4 {[%clk
0:01:01]} 31. g5 {[%clk 0:01:13.9]} 31... hxg5 {[%clk 0:01:01.3]} 32. hxg5
{[%clk 0:01:15.8]} 32... f5 {[%clk 0:01:00.7]} 33. exf5 {[%clk 0:01:16.7]} 33...
Bxf5 {[%clk 0:01:01.1]} 34. Re1 {[%clk 0:01:17.8]} 34... Kd6 {[%clk 0:00:58.3]}
35. Bb7 {[%clk 0:01:03.4]} 35... Rh2 {[%clk 0:00:52.9]} 36. Rge3 {[%clk
0:01:01.4]} 36... Rg4 {[%clk 0:00:18.3]} 37. Rxe5 {[%clk 0:01:02]} 37... Rxg5
{[%clk 0:00:19.4]} 38. Rd5+ {[%clk 0:01:03.1]} 38... Kc7 {[%clk 0:00:13.4]} 39.
Re7+ {[%clk 0:01:05]} 39... Kb8 {[%clk 0:00:14.2]} 40. Rd8+ {[%clk 0:01:05.7]}
40... Ka7 {[%clk 0:00:14.9]} 41. Be4+ {[%clk 0:01:06]} 1-0

[Event "*** Titled Tuesday Blitz"]
[Site "Chess.com"]
[Date "2019.04.02"]
[Round "2"]
[White "Alex_Molchanov"]
[Black "FERNANDEZL1983"]
[Result "0-1"]
[WhiteElo "2494"]
[BlackElo "2430"]
[TimeControl "180+2"]
[EndTime "14:21:58 PDT"]
[Termination "FERNANDEZL1983 won by resignation"]

1. c4 {[%clk 0:03:01.9]} 1... Nf6 {[%clk 0:03:01]} 2. Nf3 {[%clk 0:03:01.8]}
2... g6 {[%clk 0:03:00.8]} 3. Nc3 {[%clk 0:03:02.1]} 3... Bg7 {[%clk 0:03:01.9]}
4. e4 {[%clk 0:03:01.5]} 4... d6 {[%clk 0:03:02.4]} 5. d4 {[%clk 0:03:03]} 5...
O-O {[%clk 0:03:03.4]} 6. h3 {[%clk 0:03:04.6]} 6... e5 {[%clk 0:03:01.3]} 7. d5
{[%clk 0:03:06.1]} 7... Nfd7 {[%clk 0:03:00.6]} 8. Be2 {[%clk 0:03:03.5]} 8...
f5 {[%clk 0:02:59.6]} 9. Ng5 {[%clk 0:03:00.2]} 9... Nf6 {[%clk 0:02:57.8]} 10.
exf5 {[%clk 0:02:40.8]} 10... gxf5 {[%clk 0:02:57.1]} 11. Ne6 {[%clk 0:02:33.4]}
11... Bxe6 {[%clk 0:02:57.3]} 12. dxe6 {[%clk 0:02:35.3]} 12... c6 {[%clk
0:02:58.4]} 13. g4 {[%clk 0:02:33.5]} 13... f4 {[%clk 0:02:57.9]} 14. g5 {[%clk
0:02:32.2]} 14... Ne8 {[%clk 0:02:58.7]} 15. Ne4 {[%clk 0:02:28.6]} 15... d5
{[%clk 0:02:56.5]} 16. cxd5 {[%clk 0:02:17.6]} 16... cxd5 {[%clk 0:02:57.1]} 17.
Nc3 {[%clk 0:02:18.1]} 17... Nc7 {[%clk 0:02:55.6]} 18. Bg4 {[%clk 0:02:16.2]}
18... Nc6 {[%clk 0:02:53.7]} 19. Qb3 {[%clk 0:02:07.7]} 19... Nd4 {[%clk
0:02:51.5]} 20. Qd1 {[%clk 0:01:55.7]} 20... Ndxe6 {[%clk 0:02:50.8]} 21. Bxe6+
{[%clk 0:01:51.8]} 21... Nxe6 {[%clk 0:02:51.2]} 22. Qxd5 {[%clk 0:01:53.4]}
22... Qxd5 {[%clk 0:02:51.1]} 23. Nxd5 {[%clk 0:01:55.3]} 23... Nd4 {[%clk
0:02:52.1]} 24. O-O {[%clk 0:01:48.5]} 24... Rfd8 {[%clk 0:02:52.1]} 25. Nc3
{[%clk 0:01:45.9]} 25... Nf3+ {[%clk 0:02:52.9]} 26. Kh1 {[%clk 0:01:46]} 26...
Nxg5 {[%clk 0:02:54]} 27. h4 {[%clk 0:01:41.3]} 27... Nf3 {[%clk 0:02:54.7]} 28.
h5 {[%clk 0:01:42.8]} 28... Kf7 {[%clk 0:02:53.4]} 29. Kg2 {[%clk 0:01:42.2]}
29... Nd4 {[%clk 0:02:53.9]} 30. Ne4 {[%clk 0:01:38.4]} 30... Bf6 {[%clk
0:02:54.5]} 31. Bd2 {[%clk 0:01:29.1]} 31... Rg8+ {[%clk 0:02:54.7]} 32. Kh3
{[%clk 0:01:30]} 32... Nf3 {[%clk 0:02:53]} 33. Rac1 {[%clk 0:01:15.9]} 33...
Ng5+ {[%clk 0:02:52.4]} 34. Nxg5+ {[%clk 0:01:16.4]} 34... Rxg5 {[%clk 0:02:54]}
35. Rc7+ {[%clk 0:01:15.8]} 35... Ke6 {[%clk 0:02:45.2]} 36. Rxh7 {[%clk
0:01:15.7]} 36... Rh8 {[%clk 0:02:45.5]} 37. Rxh8 {[%clk 0:01:11]} 37... Bxh8
{[%clk 0:02:46.3]} 38. Rc1 {[%clk 0:01:11.8]} 38... Kf5 {[%clk 0:02:40.4]} 39.
Rc8 {[%clk 0:01:05]} 39... Rxh5+ {[%clk 0:02:41.1]} 40. Kg2 {[%clk 0:01:06.6]}
40... Bf6 {[%clk 0:02:41.8]} 41. Bc3 {[%clk 0:01:03.6]} 41... b5 {[%clk
0:02:36.3]} 42. Rc7 {[%clk 0:00:43.5]} 42... Rg5+ {[%clk 0:02:32.2]} 43. Kf1
{[%clk 0:00:29.1]} 43... f3 {[%clk 0:02:31.7]} 44. Rxa7 {[%clk 0:00:24.7]} 44...
Rh5 {[%clk 0:02:32.4]} 45. Ke1 {[%clk 0:00:25.5]} 45... Bg5 {[%clk 0:02:32.8]}
46. Rf7+ {[%clk 0:00:22.8]} 46... Ke4 {[%clk 0:02:32.6]} 47. Kd1 {[%clk
0:00:23.9]} 47... Rh1+ {[%clk 0:02:26.1]} 48. Be1 {[%clk 0:00:25.3]} 48... Bh4
{[%clk 0:02:21.3]} 49. Kd2 {[%clk 0:00:26.6]} 49... Rf1 {[%clk 0:02:19.6]} 50.
Rb7 {[%clk 0:00:14.2]} 50... Bxf2 {[%clk 0:02:20.4]} 51. Bxf2 {[%clk 0:00:16.1]}
51... Rxf2+ {[%clk 0:02:21.6]} 52. Kc3 {[%clk 0:00:18]} 52... Re2 {[%clk
0:02:20.2]} 53. Rf7 {[%clk 0:00:14.6]} 53... f2 {[%clk 0:02:20.9]} 54. a3 {[%clk
0:00:14.7]} 54... Ke3 {[%clk 0:02:21.7]} 55. b3 {[%clk 0:00:13.3]} 55... Re1
{[%clk 0:02:22]} 56. Rf5 {[%clk 0:00:12.7]} 56... e4 {[%clk 0:02:22.5]} 57. a4
{[%clk 0:00:14.2]} 57... bxa4 {[%clk 0:02:22.8]} 58. bxa4 {[%clk 0:00:16.1]}
58... f1=Q {[%clk 0:02:22.7]} 59. Rxf1 {[%clk 0:00:18]} 59... Rxf1 {[%clk
0:02:23.8]} 60. a5 {[%clk 0:00:19.9]} 60... Ra1 {[%clk 0:02:24.5]} 61. Kb4
{[%clk 0:00:21.8]} 61... Kd4 {[%clk 0:02:25]} 0-1

[Event "*** Titled Tuesday Blitz"]
[Site "Chess.com"]
[Date "2019.04.02"]
[Round "2"]
[White "Anahita_Gholami"]
[Black "Gordima"]
[Result "0-1"]
[WhiteElo "2674"]
[BlackElo "2713"]
[TimeControl "180+2"]
[EndTime "14:22:03 PDT"]
[Termination "Gordima won by resignation"]

1. d4 {[%clk 0:03:01.9]} 1... Nf6 {[%clk 0:02:56.8]} 2. c4 {[%clk 0:03:02]} 2...
g6 {[%clk 0:02:57.3]} 3. Nc3 {[%clk 0:03:03.1]} 3... d5 {[%clk 0:02:58.1]} 4.
cxd5 {[%clk 0:03:05]} 4... Nxd5 {[%clk 0:02:59.9]} 5. Bd2 {[%clk 0:03:06.3]}
5... Nb6 {[%clk 0:02:58.6]} 6. e4 {[%clk 0:03:07.5]} 6... Qxd4 {[%clk
0:02:57.8]} 7. Nf3 {[%clk 0:03:06.8]} 7... Qd8 {[%clk 0:02:50]} 8. Qc2 {[%clk
0:03:08]} 8... Bg4 {[%clk 0:02:47.1]} 9. Ne5 {[%clk 0:03:00.8]} 9... Be6 {[%clk
0:02:45.3]} 10. Rd1 {[%clk 0:02:58.3]} 10... N8d7 {[%clk 0:02:44.8]} 11. Bf4
{[%clk 0:02:49.6]} 11... c6 {[%clk 0:02:41.3]} 12. h4 {[%clk 0:02:29.1]} 12...
Bg7 {[%clk 0:02:20]} 13. h5 {[%clk 0:02:21]} 13... Qc8 {[%clk 0:02:18.6]} 14.
Nf3 {[%clk 0:02:15.6]} 14... Bg4 {[%clk 0:01:35.1]} 15. hxg6 {[%clk 0:01:50.1]}
15... hxg6 {[%clk 0:01:34.3]} 16. Rxh8+ {[%clk 0:01:52]} 16... Bxh8 {[%clk
0:01:36.2]} 17. Qd2 {[%clk 0:01:34.3]} 17... Bxf3 {[%clk 0:01:22.4]} 18. gxf3
{[%clk 0:01:33.8]} 18... Ne5 {[%clk 0:01:24.1]} 19. Bg2 {[%clk 0:00:39.4]} 19...
Qe6 {[%clk 0:01:14.6]} 20. Bg3 {[%clk 0:00:30.8]} 20... Nec4 {[%clk 0:01:12.6]}
21. Qh6 {[%clk 0:00:29.4]} 21... Qf6 {[%clk 0:01:00.7]} 22. f4 {[%clk
0:00:16.5]} 22... Nxb2 {[%clk 0:00:54.7]} 23. e5 {[%clk 0:00:15.6]} 23... Qg7
{[%clk 0:00:56]} 24. Qxg7 {[%clk 0:00:16.1]} 24... Bxg7 {[%clk 0:00:56.5]} 25.
Rb1 {[%clk 0:00:17.9]} 25... Nd3+ {[%clk 0:00:50]} 26. Ke2 {[%clk 0:00:19.3]}
26... O-O-O {[%clk 0:00:48.8]} 27. a4 {[%clk 0:00:19.1]} 27... Nc4 {[%clk
0:00:43.5]} 28. a5 {[%clk 0:00:20.1]} 28... Nxa5 {[%clk 0:00:42.4]} 29. Ra1
{[%clk 0:00:16.5]} 29... b6 {[%clk 0:00:42.6]} 30. Ne4 {[%clk 0:00:08.7]} 30...
f6 {[%clk 0:00:35]} 31. Bh3+ {[%clk 0:00:07.6]} 31... Kb7 {[%clk 0:00:34]} 32.
exf6 {[%clk 0:00:08.6]} 32... Bxf6 {[%clk 0:00:32.9]} 33. f5 {[%clk 0:00:10.5]}
33... Bxa1 {[%clk 0:00:33.5]} 0-1

[Event "*** Titled Tuesday Blitz"]
[Site "Chess.com"]
[Date "2019.04.02"]
[Round "2"]
[White "rubhani"]
[Black "MaxLeto"]
[Result "0-1"]
[WhiteElo "2478"]
[BlackElo "2314"]
[TimeControl "180+2"]
[EndTime "14:22:12 PDT"]
[Termination "MaxLeto won by resignation"]

1. Nf3 {[%clk 0:03:01.5]} 1... d5 {[%clk 0:02:55.7]} 2. g3 {[%clk 0:03:00.9]}
2... Nf6 {[%clk 0:02:56.4]} 3. Bg2 {[%clk 0:03:01.7]} 3... c6 {[%clk 0:02:57.3]}
4. c4 {[%clk 0:03:01.8]} 4... Bf5 {[%clk 0:02:54.8]} 5. O-O {[%clk 0:03:02.1]}
5... e6 {[%clk 0:02:55.5]} 6. d3 {[%clk 0:03:03.5]} 6... Nbd7 {[%clk 0:02:56]}
7. Qb3 {[%clk 0:03:04.5]} 7... Qb6 {[%clk 0:02:55.9]} 8. Be3 {[%clk 0:03:03.9]}
8... Qxb3 {[%clk 0:02:55]} 9. axb3 {[%clk 0:03:05.8]} 9... a6 {[%clk 0:02:56.6]}
10. h3 {[%clk 0:03:02.6]} 10... Be7 {[%clk 0:02:55.3]} 11. Nh4 {[%clk
0:02:45.3]} 11... Bg6 {[%clk 0:02:46.1]} 12. Nxg6 {[%clk 0:02:46.2]} 12... hxg6
{[%clk 0:02:48]} 13. Nc3 {[%clk 0:02:45.8]} 13... Nc5 {[%clk 0:02:46.9]} 14. b4
{[%clk 0:02:01.6]} 14... Ncd7 {[%clk 0:02:42.6]} 15. b5 {[%clk 0:02:00.5]} 15...
O-O {[%clk 0:02:43.2]} 16. bxc6 {[%clk 0:01:46.7]} 16... bxc6 {[%clk 0:02:44]}
17. Bf4 {[%clk 0:01:47.7]} 17... Ra7 {[%clk 0:02:35.2]} 18. Ra2 {[%clk
0:01:26.3]} 18... Rfa8 {[%clk 0:02:34.9]} 19. Rfa1 {[%clk 0:01:26.4]} 19... a5
{[%clk 0:02:34.1]} 20. cxd5 {[%clk 0:01:13.4]} 20... cxd5 {[%clk 0:02:34.4]} 21.
Nb5 {[%clk 0:01:12.1]} 21... Rb7 {[%clk 0:02:31.7]} 22. Rxa5 {[%clk 0:01:08.7]}
22... Rxa5 {[%clk 0:02:31.9]} 23. Rxa5 {[%clk 0:01:10.1]} 23... Kh7 {[%clk
0:02:09.1]} 24. Nd6 {[%clk 0:00:54.5]} 24... Bxd6 {[%clk 0:01:56]} 25. Bxd6
{[%clk 0:00:56.4]} 25... Rxb2 {[%clk 0:01:57.7]} 26. Bf3 {[%clk 0:00:57.9]}
26... g5 {[%clk 0:01:50.3]} 27. g4 {[%clk 0:00:58.4]} 27... Kg6 {[%clk
0:01:48.6]} 28. Ra7 {[%clk 0:00:57]} 28... Rb6 {[%clk 0:01:41.4]} 29. Bg3 {[%clk
0:00:58]} 29... Nc5 {[%clk 0:01:40.1]} 30. h4 {[%clk 0:00:54.2]} 30... gxh4
{[%clk 0:01:40.8]} 31. Bxh4 {[%clk 0:00:55.4]} 31... Nb3 {[%clk 0:01:40.9]} 32.
e3 {[%clk 0:00:55.5]} 32... Nd2 {[%clk 0:01:40.3]} 33. Be2 {[%clk 0:00:49.5]}
33... Rb1+ {[%clk 0:01:40.9]} 34. Kg2 {[%clk 0:00:50.3]} 34... Re1 {[%clk
0:01:42.5]} 35. Bxf6 {[%clk 0:00:31.5]} 35... gxf6 {[%clk 0:01:16.8]} 36. Bf3
{[%clk 0:00:32]} 36... Rb1 {[%clk 0:01:10.7]} 37. d4 {[%clk 0:00:32.4]} 37...
Rb2 {[%clk 0:01:08.6]} 38. Be2 {[%clk 0:00:27.3]} 38... Ne4 {[%clk 0:01:05.1]}
39. Bd3 {[%clk 0:00:28.3]} 39... Rxf2+ {[%clk 0:01:05.5]} 40. Kg1 {[%clk
0:00:27.7]} 40... Rf3 {[%clk 0:01:05.9]} 41. Bxe4+ {[%clk 0:00:25.9]} 41... dxe4
{[%clk 0:01:07.8]} 42. Ra3 {[%clk 0:00:27.1]} 42... Kg5 {[%clk 0:01:07.1]} 43.
Kg2 {[%clk 0:00:19.4]} 43... Kxg4 {[%clk 0:01:07.9]} 44. Rb3 {[%clk 0:00:20.8]}
44... f5 {[%clk 0:01:08.4]} 45. Ra3 {[%clk 0:00:21.4]} 45... f6 {[%clk
0:01:07.8]} 0-1

[Event "*** Titled Tuesday Blitz"]
[Site "Chess.com"]
[Date "2019.04.02"]
[Round "2"]
[White "Jospem"]
[Black "Gabix_94"]
[Result "1-0"]
[WhiteElo "2790"]
[BlackElo "2567"]
[TimeControl "180+2"]
[EndTime "14:22:13 PDT"]
[Termination "Jospem won by resignation"]

1. Nf3 {[%clk 0:03:01.9]} 1... Nf6 {[%clk 0:02:59.2]} 2. c4 {[%clk 0:03:03.1]}
2... g6 {[%clk 0:03:00]} 3. g3 {[%clk 0:03:04.6]} 3... Bg7 {[%clk 0:03:01.4]} 4.
Bg2 {[%clk 0:03:06.5]} 4... O-O {[%clk 0:03:02.5]} 5. O-O {[%clk 0:03:08.4]}
5... d6 {[%clk 0:03:03.9]} 6. Nc3 {[%clk 0:03:09.2]} 6... e5 {[%clk 0:03:03.6]}
7. d4 {[%clk 0:03:10.5]} 7... Nbd7 {[%clk 0:03:03.7]} 8. e3 {[%clk 0:03:09.4]}
8... exd4 {[%clk 0:02:54.5]} 9. Nxd4 {[%clk 0:03:08.5]} 9... Re8 {[%clk
0:02:54.7]} 10. b3 {[%clk 0:03:06.8]} 10... c6 {[%clk 0:02:53.4]} 11. Bb2 {[%clk
0:03:06.5]} 11... Nc5 {[%clk 0:02:53]} 12. Qc2 {[%clk 0:03:05.4]} 12... Qc7
{[%clk 0:02:51.7]} 13. h3 {[%clk 0:03:05.7]} 13... Bd7 {[%clk 0:02:51.5]} 14.
Rad1 {[%clk 0:03:06.8]} 14... Rad8 {[%clk 0:02:52.4]} 15. b4 {[%clk 0:03:08]}
15... Ne6 {[%clk 0:02:52.8]} 16. Nf3 {[%clk 0:03:02.2]} 16... Bc8 {[%clk
0:02:47.9]} 17. Qb3 {[%clk 0:02:57.1]} 17... a5 {[%clk 0:02:44.7]} 18. a3 {[%clk
0:02:58.1]} 18... h5 {[%clk 0:02:44]} 19. Rd2 {[%clk 0:02:57.5]} 19... b6 {[%clk
0:02:37.6]} 20. Rfd1 {[%clk 0:02:56.1]} 20... Bb7 {[%clk 0:02:36.5]} 21. Qc2
{[%clk 0:02:50]} 21... axb4 {[%clk 0:02:35.7]} 22. axb4 {[%clk 0:02:50.9]} 22...
Qe7 {[%clk 0:02:29.6]} 23. Na4 {[%clk 0:02:44.8]} 23... Qc7 {[%clk 0:02:21.9]}
24. Qb3 {[%clk 0:02:27.1]} 24... c5 {[%clk 0:02:15.5]} 25. Nc3 {[%clk
0:02:21.8]} 25... cxb4 {[%clk 0:02:15.9]} 26. Nb5 {[%clk 0:02:06.5]} 26... Qe7
{[%clk 0:02:15.8]} 27. Nxd6 {[%clk 0:01:39.9]} 27... Nc5 {[%clk 0:02:15.3]} 28.
Qxb4 {[%clk 0:01:41.1]} 28... Nfe4 {[%clk 0:01:49.2]} 29. Nxe4 {[%clk
0:01:35.9]} 29... Bxe4 {[%clk 0:01:51.1]} 30. Bxg7 {[%clk 0:01:34.2]} 30... Kxg7
{[%clk 0:01:50.7]} 31. Qxb6 {[%clk 0:01:22.4]} 31... Rxd2 {[%clk 0:01:49.3]} 32.
Rxd2 {[%clk 0:01:23.3]} 32... Ra8 {[%clk 0:01:39.2]} 33. Kh2 {[%clk 0:01:23]}
33... Bxf3 {[%clk 0:01:31.9]} 34. Bxf3 {[%clk 0:01:22.5]} 34... Rc8 {[%clk
0:01:29]} 35. Qd6 {[%clk 0:01:20.7]} 35... Qa7 {[%clk 0:01:22.3]} 36. Qd4+
{[%clk 0:01:18.1]} 36... Kh7 {[%clk 0:01:23.3]} 37. Rb2 {[%clk 0:01:15.9]} 37...
Qe7 {[%clk 0:01:23.8]} 38. Rb5 {[%clk 0:01:11.2]} 38... Ne6 {[%clk 0:01:24.4]}
39. Qe4 {[%clk 0:01:03.8]} 39... Qf6 {[%clk 0:01:23.3]} 40. h4 {[%clk
0:00:54.2]} 40... Qc3 {[%clk 0:01:13.7]} 41. Rxh5+ {[%clk 0:00:48.2]} 41... Kg8
{[%clk 0:01:12.9]} 42. Qe5 {[%clk 0:00:47.7]} 42... Qxe5 {[%clk 0:01:10.9]} 43.
Rxe5 {[%clk 0:00:49.6]} 43... Rxc4 {[%clk 0:01:12.6]} 44. Kg2 {[%clk 0:00:49]}
44... Rc2 {[%clk 0:01:12.8]} 45. Ra5 {[%clk 0:00:49.9]} 45... Nc5 {[%clk
0:01:13.9]} 46. Ra8+ {[%clk 0:00:48.8]} 46... Kg7 {[%clk 0:01:14.8]} 47. Rc8
{[%clk 0:00:50.1]} 47... Rc3 {[%clk 0:01:13.3]} 48. g4 {[%clk 0:00:49.9]} 48...
f5 {[%clk 0:01:14]} 49. g5 {[%clk 0:00:50.8]} 49... Kf7 {[%clk 0:01:14.3]} 50.
Rc7+ {[%clk 0:00:50.4]} 50... Ke6 {[%clk 0:01:15]} 51. Rc6+ {[%clk 0:00:49.3]}
51... Ke5 {[%clk 0:01:16.2]} 52. h5 {[%clk 0:00:49.5]} 52... gxh5 {[%clk
0:01:16.6]} 53. g6 {[%clk 0:00:50.9]} 1-0

[Event "*** Titled Tuesday Blitz"]
[Site "Chess.com"]
[Date "2019.04.02"]
[Round "2"]
[White "KenanGarayev"]
[Black "Koksik_13"]
[Result "1-0"]
[WhiteElo "2741"]
[BlackElo "2661"]
[TimeControl "180+2"]
[EndTime "14:22:15 PDT"]
[Termination "KenanGarayev won on time"]

1. d4 {[%clk 0:02:50.9]} 1... e6 {[%clk 0:03:00]} 2. c4 {[%clk 0:02:52.8]} 2...
d5 {[%clk 0:02:54.1]} 3. Nc3 {[%clk 0:02:53.1]} 3... a6 {[%clk 0:02:55]} 4. cxd5
{[%clk 0:02:49.2]} 4... exd5 {[%clk 0:02:51.3]} 5. Nf3 {[%clk 0:02:51.1]} 5...
c6 {[%clk 0:02:51.7]} 6. Qc2 {[%clk 0:02:45.9]} 6... Bd6 {[%clk 0:02:52.1]} 7.
Bg5 {[%clk 0:02:44.8]} 7... Nf6 {[%clk 0:02:50]} 8. Bxf6 {[%clk 0:02:43]} 8...
Qxf6 {[%clk 0:02:50.2]} 9. Nxd5 {[%clk 0:02:41.9]} 9... Qd8 {[%clk 0:02:45.7]}
10. Nc3 {[%clk 0:02:40.9]} 10... O-O {[%clk 0:02:44.1]} 11. g3 {[%clk
0:02:36.7]} 11... Nd7 {[%clk 0:02:41.2]} 12. Bg2 {[%clk 0:02:37.8]} 12... Nf6
{[%clk 0:02:37.5]} 13. O-O {[%clk 0:02:34.3]} 13... Bg4 {[%clk 0:02:30.7]} 14.
Ne5 {[%clk 0:02:30.2]} 14... Bh5 {[%clk 0:02:28]} 15. Rad1 {[%clk 0:02:16.9]}
15... Re8 {[%clk 0:02:26.8]} 16. f4 {[%clk 0:02:14.4]} 16... Qc7 {[%clk
0:01:59.2]} 17. Ne4 {[%clk 0:02:08.7]} 17... Nd5 {[%clk 0:01:52.3]} 18. Ng5
{[%clk 0:02:03.2]} 18... Nf6 {[%clk 0:01:29.2]} 19. Bf3 {[%clk 0:02:02.7]} 19...
Bg6 {[%clk 0:01:29.9]} 20. f5 {[%clk 0:01:56.5]} 20... Bxe5 {[%clk 0:01:27.7]}
21. fxg6 {[%clk 0:01:53.1]} 21... hxg6 {[%clk 0:01:25.9]} 22. dxe5 {[%clk
0:01:49.2]} 22... Qxe5 {[%clk 0:01:25.1]} 23. Qd2 {[%clk 0:01:50.7]} 23... Qc5+
{[%clk 0:01:16.6]} 24. Kh1 {[%clk 0:01:47.5]} 24... Re5 {[%clk 0:01:13.8]} 25.
b4 {[%clk 0:01:41.7]} 25... Qb5 {[%clk 0:01:11]} 26. Nh3 {[%clk 0:01:34]} 26...
Rae8 {[%clk 0:00:58.7]} 27. Qd4 {[%clk 0:01:26.6]} 27... g5 {[%clk 0:00:56.4]}
28. Nf2 {[%clk 0:01:22.7]} 28... a5 {[%clk 0:00:54.4]} 29. bxa5 {[%clk
0:01:20.2]} 29... Qxa5 {[%clk 0:00:54.9]} 30. Ng4 {[%clk 0:01:19.1]} 30... Nxg4
{[%clk 0:00:52.1]} 31. Qxg4 {[%clk 0:01:21]} 31... Qxa2 {[%clk 0:00:51.5]} 32.
Rd7 {[%clk 0:01:20.7]} 32... b5 {[%clk 0:00:44.2]} 33. Bxc6 {[%clk 0:01:17.1]}
33... Rxe2 {[%clk 0:00:43]} 34. Bd5 {[%clk 0:01:00.5]} 34... Rxh2+ {[%clk
0:00:16.9]} 35. Kg1 {[%clk 0:01:01]} 35... Ree2 {[%clk 0:00:08.4]} 36. Rd8+
{[%clk 0:00:54.5]} 36... Kh7 {[%clk 0:00:09]} 37. Qf5+ {[%clk 0:00:49.6]} 1-0

[Event "*** Titled Tuesday Blitz"]
[Site "Chess.com"]
[Date "2019.04.02"]
[Round "2"]
[White "krzysztofszczurek"]
[Black "gmcorrales"]
[Result "1-0"]
[WhiteElo "2393"]
[BlackElo "2768"]
[TimeControl "180+2"]
[EndTime "14:22:16 PDT"]
[Termination "krzysztofszczurek won on time"]

1. e4 {[%clk 0:03:01.9]} 1... c6 {[%clk 0:02:56.1]} 2. d4 {[%clk 0:03:00.2]}
2... d5 {[%clk 0:02:56.9]} 3. exd5 {[%clk 0:03:00.9]} 3... cxd5 {[%clk
0:02:57.9]} 4. Nf3 {[%clk 0:02:58.2]} 4... Nf6 {[%clk 0:02:59.4]} 5. Bd3 {[%clk
0:02:56.8]} 5... g6 {[%clk 0:02:59.9]} 6. c3 {[%clk 0:02:56.5]} 6... Bg7 {[%clk
0:03:01.1]} 7. O-O {[%clk 0:02:56.1]} 7... O-O {[%clk 0:03:02.7]} 8. Re1 {[%clk
0:02:53.9]} 8... Bg4 {[%clk 0:03:03.2]} 9. h3 {[%clk 0:02:51.6]} 9... Bxf3
{[%clk 0:03:04.4]} 10. Qxf3 {[%clk 0:02:52.5]} 10... Nc6 {[%clk 0:03:06.3]} 11.
Bf4 {[%clk 0:02:51.5]} 11... a6 {[%clk 0:03:04.5]} 12. Nd2 {[%clk 0:02:50.3]}
12... b5 {[%clk 0:03:00.9]} 13. Nb3 {[%clk 0:02:45.6]} 13... Ne8 {[%clk
0:02:06.1]} 14. Nc5 {[%clk 0:02:38.3]} 14... e6 {[%clk 0:02:02.3]} 15. Qe3
{[%clk 0:02:30.2]} 15... Kh8 {[%clk 0:01:40.5]} 16. Bh6 {[%clk 0:02:29.4]} 16...
Nd6 {[%clk 0:01:38.3]} 17. Bxg7+ {[%clk 0:02:27.2]} 17... Kxg7 {[%clk
0:01:40.2]} 18. Qg3 {[%clk 0:02:26.9]} 18... Re8 {[%clk 0:01:37.6]} 19. Re2
{[%clk 0:02:23.5]} 19... Qe7 {[%clk 0:01:23.4]} 20. Rae1 {[%clk 0:02:23.1]}
20... Nd8 {[%clk 0:00:59.4]} 21. Qe5+ {[%clk 0:02:19.6]} 21... Kg8 {[%clk
0:00:57.2]} 22. Qxd5 {[%clk 0:02:18.8]} 22... N8b7 {[%clk 0:00:46.5]} 23. Qf3
{[%clk 0:02:04.3]} 23... Nxc5 {[%clk 0:00:16.4]} 24. dxc5 {[%clk 0:02:04.8]}
24... Nc4 {[%clk 0:00:17.7]} 25. Bxc4 {[%clk 0:02:00.3]} 25... bxc4 {[%clk
0:00:19.6]} 26. Re5 {[%clk 0:01:57.6]} 26... Rac8 {[%clk 0:00:19.9]} 27. Qe3
{[%clk 0:01:56]} 27... Red8 {[%clk 0:00:20.4]} 28. b4 {[%clk 0:01:26.9]} 28...
Rd3 {[%clk 0:00:20.7]} 29. Qc1 {[%clk 0:01:26.7]} 29... Qf6 {[%clk 0:00:18.6]}
30. a4 {[%clk 0:01:24.3]} 30... Rcd8 {[%clk 0:00:16]} 31. b5 {[%clk 0:01:19.4]}
31... Rd2 {[%clk 0:00:16.6]} 32. R5e2 {[%clk 0:01:18.9]} 32... R2d5 {[%clk
0:00:13.8]} 33. Qa3 {[%clk 0:01:14]} 33... Rd3 {[%clk 0:00:06.9]} 34. c6 {[%clk
0:01:07.7]} 34... Rxc3 {[%clk 0:00:06.2]} 35. Qc5 {[%clk 0:01:08.7]} 35... axb5
{[%clk 0:00:04.8]} 36. axb5 {[%clk 0:01:08.5]} 36... Rd5 {[%clk 0:00:03.7]} 37.
Qb6 {[%clk 0:01:05.5]} 37... Rg5 {[%clk 0:00:03.2]} 38. c7 {[%clk 0:01:04.3]}
38... Qf3 {[%clk 0:00:03.4]} 39. c8=Q+ {[%clk 0:01:00.6]} 39... Kg7 {[%clk
0:00:04.7]} 40. Qcc6 {[%clk 0:00:51.8]} 40... Rxg2+ {[%clk 0:00:05]} 41. Kf1
{[%clk 0:00:52.9]} 1-0